[Event "Dutch Meesterklasse 2024-25"]
[Site "Netherlands"]
[Date "2024.10.12"]
[Round "2.5"]
[White "Zwirs, Nico"]
[Black "Van der Hagen, Loek"]
[Result "1/2-1/2"]
[ECO "C55"]
[WhiteElo "2474"]
[BlackElo "2322"]
[Annotator "RC"]
[PlyCount "134"]
[EventDate "2024.09.21"]
[EventType "team-tourn"]
[EventCountry "NED"]
[SourceTitle "playchess.com"]
[Source "ChessBase"]
[SourceQuality "1"]
[TimeControl "40/5400+30:1800+30"]

1. e4 {[%emt 0:00:01]} e5 {[%emt 0:00:15]} 2. Nf3 {[%emt 0:00:05]} Nc6 {[%emt 0:00:05]} 3. Bc4 {[%emt 0:00:14]} Nf6 {[%emt 0:00:18]} 4. d3 {[%emt 0:00:07]} h6 {[%emt 0:00:16]} 5. c3 {[%emt 0:02:50]} d6 {[%emt 0:00:19]} 6. O-O {[%emt 0:00:28]} g5 {[%emt 0:00:13]} 7. a4 {[%emt 0:00:13]} Bg7 {[%emt 0:00:28]} 8. a5 {[%emt 0:00:37]} O-O {[%emt 0:00:17]} 9. Nbd2 {[%emt 0:07:03]} Ne7 {[%emt 0:00:48]} 10. Re1 {[%emt 0:09:00]} Ng6 {[%emt 0:01:34]} 11. h3 {[%emt 0:03:44]} c6 {[%emt 0:01:52]} 12. Bb3 {[%emt 0:08:37]} Re8 {[%emt 0:08:33]} 13. d4 {[%emt 0:10:04]} g4 {[%emt 0:22:18]} 14. dxe5 {[%emt 0:08:12]} dxe5 {[%emt 0:04:39]} 15. hxg4 {[%emt 0:00:16]} Bxg4 {[%emt 0:00:08]} 16. Nf1 {[%emt 0:04:12]} Qc8 {[%emt 0:06:37]} 17. N1h2 {[%emt 0:01:02]} Rd8 {[%emt 0:16:03]} 18. Qe2 {[%emt 0:01:18]} Be6 {[%emt 0:00:20]} 19. Bxe6 {[%emt 0:06:20]} Qxe6 {[%emt 0:00:28]} 20. Nf1 {[%emt 0:00:48]} Qg4 {[%emt 0:05:46]} 21. Ng3 {[%emt 0:02:29]} Nh5 {[%emt 0:02:16]} 22. Nd4 {[%emt 0:16:38]} Qxe2 {[%emt 0:03:19]} 23. Ndxe2 {[%emt 0:00:02]} Nhf4 {[%emt 0:07:05]} 24. Be3 {[%emt 0:00:20]} Bf6 {[%emt 0:02:23]} 25. Nf5 {[%emt 0:01:46]} Kh7 {[%emt 0:05:04]} 26. Nxf4 {[%emt 0:05:48]} exf4 {[%emt 0:01:43]} 27. Bd4 {[%emt 0:00:08]} Be5 {[%emt 0:01:32]} 28. Rad1 {[%emt 0:02:14]} h5 {[%emt 0:01:17]} 29. f3 {[%emt 0:00:56]} f6 {[%emt 0:01:28]} 30. Kf2 {[%emt 0:01:52]} Nf8 {[%emt 0:00:02]} 31. Bc5 {[%emt 0:03:04]} Ne6 {[%emt 0:01:11]} 32. Be7 {[%emt 0:00:20]} Rxd1 {[%emt 0:00:15]} 33. Rxd1 {[%emt 0:00:02]} Rc8 {[%emt 0:00:15]} 34. Ba3 {[%emt 0:01:38]} Rd8 {[%emt 0:02:16]} 35. Rxd8 {[%emt 0:00:57]} Nxd8 {[%emt 0:00:01]} 36. Ke2 {[%emt 0:00:41]} Kg6 {[%emt 0:01:38]} 37. Kd3 {[%emt 0:00:54]} a6 {[%emt 0:02:44]} 38. Bd6 {[%emt 0:02:30]} Ne6 {[%emt 0:02:12]} 39. b4 {[%emt 0:00:59]} Kg5 {[%emt 0:00:38]} 40. Be7 {[%emt 0:01:26]} Nc7 {[%emt 0:01:00]} 41. Bc5 {[%emt 0:12:35]} Ne6 {[%emt 0:07:08]} 42. Bf2 {[%emt 0:00:14]} Kg6 {[%emt 0:02:43]} 43. Bd4 {[%emt 0:03:03]} Bc7 {[%emt 0:03:02]} 44. Bb6 {[%emt 0:05:01]} Be5 {[%emt 0:01:14]} 45. Bd4 {[%emt 0:01:03]} Bc7 {[%emt 0:00:06]} 46. Kc4 {[%emt 0:01:18]} Kg5 {[%emt 0:02:04]} 47. Bf2 {[%emt 0:02:10]} Be5 {[%emt 0:03:40]} 48. Nd4 {[%emt 0:02:33]} Nf8 {[%emt 0:00:08]} 49. Be1 {[%emt 0:01:23]} Bd6 {[%emt 0:04:16]} 50. Bd2 {[%emt 0:01:38]} Kg6 {[%emt 0:01:02]} 51. Nf5 {[%emt 0:01:01]} Be5 {[%emt 0:00:01]} 52. Ne7+ {[%emt 0:00:52]} Kf7 {[%emt 0:00:58]} 53. Nxc6 {[%emt 0:00:39]} bxc6 {[%emt 0:00:07]} 54. Kc5 {[%emt 0:00:01]} Ne6+ {[%emt 0:06:45]} 55. Kxc6 {[%emt 0:00:01]} Ke7 {[%emt 0:01:09]} 56. Kb6 {[%emt 0:01:10]} Nc7 {[%emt 0:00:44]} 57. c4 {[%emt 0:02:03]} Kd7 {[%emt 0:01:15]} 58. Kb7 {[%emt 0:00:11]} Kd6 {[%emt 0:02:34]} 59. Be1 {[%emt 0:00:29]} Bd4 {[%emt 0:00:31]} 60. Bd2 {[%emt 0:00:54]} Be5 {[%emt 0:00:24]} 61. Bc1 {[%emt 0:01:32]} Kd7 {[%emt 0:00:15]} 62. Bd2 {[%emt 0:00:28]} Kd6 {[%emt 0:00:05]} 63. Kb6 {[%emt 0:00:55]} Kd7 {[%emt 0:00:22]} 64. Kb7 {[%emt 0:00:47]} Kd6 {[%emt 0:00:01]} 65. Be1 {[%emt 0:00:18]} Bd4 {[%emt 0:00:04]} 66. Bd2 {[%emt 0:00:24]} Be5 {[%emt 0:00:01]} 67. Bc1 {[%emt 0:00:21]} Kd7 {[%emt 0:00:10]} 1/2-1/2

[Event "Dutch Meesterklasse 2024-25"]
[Site "Netherlands"]
[Date "2024.10.12"]
[Round "2.6"]
[White "Hausrath, Daniel"]
[Black "Krudde, Fitzgerald"]
[Result "1/2-1/2"]
[ECO "A30"]
[WhiteElo "2471"]
[BlackElo "2259"]
[Annotator "RC"]
[PlyCount "101"]
[EventDate "2024.09.21"]
[EventType "team-tourn"]
[EventCountry "NED"]
[SourceTitle "playchess.com"]
[Source "ChessBase"]
[SourceQuality "1"]
[TimeControl "40/5400+30:1800+30"]

1. Nf3 {[%emt 0:00:06]} Nf6 {[%emt 0:01:14]} 2. g3 {[%emt 0:00:26]} b6 {[%emt 0:01:21]} 3. Bg2 {[%emt 0:00:07]} Bb7 {[%emt 0:00:05]} 4. O-O {[%emt 0:00:25]} e6 {[%emt 0:00:40]} 5. c4 {[%emt 0:00:43]} c5 {[%emt 0:00:58]} 6. Nc3 {[%emt 0:00:29]} Be7 {[%emt 0:01:47]} 7. d4 {[%emt 0:05:57]} cxd4 {[%emt 0:00:14]} 8. Qxd4 {[%emt 0:00:06]} d6 {[%emt 0:00:13]} 9. Bg5 {[%emt 0:00:45]} Nbd7 {[%emt 0:01:21]} 10. Nb5 {[%emt 0:09:59]} d5 {[%emt 0:04:05]} 11. cxd5 {[%emt 0:02:08]} Bxd5 {[%emt 0:00:24]} 12. Nc3 {[%emt 0:04:31]} Bb7 {[%emt 0:05:58]} 13. Rad1 {[%emt 0:09:07]} O-O {[%emt 0:08:21]} 14. e4 {[%emt 0:05:29]} h6 {[%emt 0:19:17]} 15. Bf4 {[%emt 0:03:38]} Nc5 {[%emt 0:04:59]} 16. Qe3 {[%emt 0:08:13]} Qe8 {[%emt 0:02:53]} 17. Rd4 {[%emt 0:04:46]} Rd8 {[%emt 0:05:44]} 18. b4 {[%emt 0:13:41]} Rxd4 {[%emt 0:19:49]} 19. Nxd4 {[%emt 0:00:43]} e5 {[%emt 0:10:09]} 20. Bxe5 {[%emt 0:05:15]} Ng4 {[%emt 0:00:01]} 21. Qf4 {[%emt 0:01:50]} Nd3 {[%emt 0:01:59]} 22. Qxg4 {[%emt 0:00:38]} Nxe5 {[%emt 0:00:02]} 23. Qh5 {[%emt 0:02:38]} Bxb4 {[%emt 0:00:25]} 24. Nd5 {[%emt 0:00:28]} Bc5 {[%emt 0:01:35]} 25. Nf5 {[%emt 0:01:36]} Qe6 {[%emt 0:03:22]} 26. Nf4 {[%emt 0:02:18]} Qf6 {[%emt 0:00:02]} 27. Qe2 {[%emt 0:02:52]} Rd8 {[%emt 0:01:49]} 28. Rd1 {[%emt 0:06:30]} g6 {[%emt 0:00:43]} 29. Nxh6+ {[%emt 0:02:18]} Kg7 {[%emt 0:00:03]} 30. Nf5+ {[%emt 0:01:35]} Kh7 {[%emt 0:00:59]} 31. Ne3 {[%emt 0:01:38]} Bxe3 {[%emt 0:00:35]} 32. fxe3 {[%emt 0:00:09]} Rxd1+ {[%emt 0:02:50]} 33. Qxd1 {[%emt 0:00:02]} Qc6 {[%emt 0:01:23]} 34. Qd2 {[%emt 0:03:28]} Qc4 {[%emt 0:00:30]} 35. Nd5 {[%emt 0:00:17]} Ba6 {[%emt 0:01:18]} 36. h3 {[%emt 0:00:34]} Nf3+ {[%emt 0:00:26]} 37. Bxf3 {[%emt 0:00:07]} Qf1+ {[%emt 0:00:02]} 38. Kh2 {[%emt 0:00:04]} Qxf3 {[%emt 0:00:09]} 39. Qg2 {[%emt 0:03:19]} Qd1 {[%emt 0:01:10]} 40. Qf2 {[%emt 0:00:50]} Kg8 {[%emt 0:00:55]} 41. Ne7+ {[%emt 0:02:54]} Kg7 {[%emt 0:05:33]} 42. e5 {[%emt 0:01:02]} Qd3 {[%emt 0:06:45]} 43. h4 {[%emt 0:09:32]} Bb7 {[%emt 0:03:56]} 44. h5 {[%emt 0:06:44]} gxh5 {[%emt 0:01:13]} 45. Nf5+ {[%emt 0:00:58]} Kf8 {[%emt 0:03:37]} 46. Nd6 {[%emt 0:03:49]} Bd5 {[%emt 0:04:22]} 47. e4 {[%emt 0:00:59]} Be6 {[%emt 0:00:02]} 48. Nxf7 {[%emt 0:00:27]} Ke8 {[%emt 0:00:55]} 49. Nd6+ {[%emt 0:04:41]} Kd7 {[%emt 0:00:25]} 50. a4 {[%emt 0:00:26]} Qc3 {[%emt 0:04:37]} 51. Nb5 {[%emt 0:03:24]} 1/2-1/2

[Event "Dutch Meesterklasse 2024-25"]
[Site "Netherlands"]
[Date "2024.10.12"]
[Round "2.6"]
[White "Slagboom, Leandro"]
[Black "Van Delft, Merijn"]
[Result "1/2-1/2"]
[ECO "E73"]
[WhiteElo "2345"]
[BlackElo "2360"]
[Annotator "TA"]
[PlyCount "34"]
[EventDate "2024.09.21"]
[EventType "team-tourn"]
[EventCountry "NED"]
[SourceTitle "playchess.com"]
[Source "ChessBase"]
[SourceQuality "1"]
[TimeControl "40/5400+30:1800+30"]

{[%evp 13,34,57,38,27,64,56,82,28,30,23,59,40,73,36,196,113,174,66,102,76,824,-583,-134]} 1. d4 Nf6 2. c4 g6 3. Nc3 Bg7 4. e4 d6 5. Be2 O-O 6. Be3 c5 {6...Na6 gains popularity.} 7. d5 e6 8. Nf3 Re8 9. Nd2 $1 Bd7 10. a4 (10. O-O $16) 10... Na6 11. O-O e5 $146 (11... Nb4 12. h3 h6 13. Bf4 e5 14. Be3 Nh7 15. Nb5 Qe7 16. Nb3 Rec8 17. Qd2 Ng5 {½-½ Akbas,U (2438)-Ahmadzada,A (2501) Pozarevac Rudar GM 01 2024 (5.1)}) 12. Kh1 h5 13. Bg5 Kh8 $2 {[#]} (13... Qb8 $14) 14. h3 (14. f4 $1 $18) 14... Nb4 {[#]} (14... Qc7 $16) {Optimal for White.} 15. g4 (15. f4 $1 $18) 15... hxg4 16. hxg4 (16. Bxg4 $6 Kh7 $11) 16... Nh7 $2 {[%mdl 8192]} 17. Bh4 $4 {[%emt 0:10:37][%mdl 8192] Crucial path to victory analysis.} (17. Bxd8 $18 Rexd8 18. Re1) 17... Bf6 $2 {[%emt 0:06:50] Decisively advantageous analysis.} (17... Qxh4+ $19 18. Kg2 Qg5) 1/2-1/2

[Event "Dutch Meesterklasse 2024-25"]
[Site "Netherlands"]
[Date "2024.10.12"]
[Round "2.7"]
[White "Rijnaarts, Sjef"]
[Black "Maatman, Nick"]
[Result "0-1"]
[ECO "B66"]
[WhiteElo "2273"]
[BlackElo "2382"]
[Annotator "TA"]
[PlyCount "198"]
[EventDate "2024.09.21"]
[EventType "team-tourn"]
[EventCountry "NED"]
[SourceTitle "playchess.com"]
[Source "ChessBase"]
[SourceQuality "1"]
[TimeControl "40/5400+30:1800+30"]

{[%evp 121,198,-97,-97,-97,-100,-490,-475,-400,-72,-72,-72,-72,-72,-72,-72,-72,-72,-72,-72,-72,-72,-72,-72,-72,-72,-72,-72,-73,-72,-72,-72,-72,-72,-73,-73,-73,-73,-73,-73,-73,-73,-73,-73,-75,-75,-75,-75,-77,-77,-29984,-29985,-29984,-77,-77,-73,-29986,-82,-84,-84,-84,-84,-84,-84,-84,-77,-84,-84,-84,-77,-84,-77,-77,-77,-84,-77,-77,-77,-29992,-29992]} 1. e4 {[%emt 0:00:03]} c5 {[%emt 0:04:40]} 2. Nf3 {[%emt 0:00:13]} d6 {[%emt 0:00:13]} 3. d4 {[%emt 0:00:07]} cxd4 {[%emt 0:00:04]} 4. Nxd4 {[%emt 0:00:04]} Nf6 {[%emt 0:00:04]} 5. Nc3 {[%emt 0:00:07]} Nc6 {[%emt 0:00:04]} 6. Bg5 {[%emt 0:00:11]} e6 {[%emt 0:00:06]} 7. Qd2 {[%emt 0:00:43]} Be7 {[%emt 0:00:06]} 8. O-O-O {[%emt 0:00:57]} a6 $1 {[%emt 0:00:12][%mdl 4] is now more promising than 8...0-0.} 9. Kb1 {[%emt 0:01:24] B66: Sicilian: Richter-Rauzer: 7...a6 8 0-0-0 h6.} Nxd4 {[%emt 0:00:28]} 10. Qxd4 {[%emt 0:00:13]} h6 {[%emt 0:00:05]} 11. Bc1 $146 {[%emt 0:03:23]} ({Predecessor:} 11. Be3 Qc7 12. f3 b5 13. Qd2 Bb7 14. h4 h5 15. Bg5 Rc8 16. Bd3 O-O 17. Ne2 {1-0 Dominguez Perez,L (2748)-Praggnanandhaa,R (2749) Saint Louis Rapid 2024 (7)}) 11... Qc7 {[%emt 0:06:08]} 12. f3 {[%emt 0:04:24]} b5 {[%emt 0:00:15]} 13. a3 {[%emt 0:00:53]} Bb7 {[%emt 0:04:09]} 14. Bxb5+ {[%emt 0:07:49]} axb5 {[%emt 0:01:09]} 15. Nxb5 {[%emt 0:00:05]} Qc6 {[%emt 0:07:31]} 16. Nxd6+ {[%emt 0:01:01]} Qxd6 {[%emt 0:04:08]} 17. Qxd6 {[%emt 0:01:11]} Bxd6 {[%emt 0:00:05]} 18. Rxd6 {[%emt 0:00:07]} Ke7 {[%emt 0:24:21]} 19. Rb6 {[%emt 0:05:03]} Ba6 {[%emt 0:03:04]} 20. b3 {[%emt 0:04:34]} Nd7 {[%emt 0:12:44]} 21. Rb4 {[%emt 0:01:47]} g5 {[%emt 0:02:22]} 22. a4 {[%emt 0:04:11]} Rhg8 {[%emt 0:08:36]} 23. Ba3 {[%emt 0:02:04]} Ke8 {[%emt 0:02:20]} 24. Rd1 {[%emt 0:01:31]} e5 {[%emt 0:04:08]} 25. Rd6 {[%emt 0:09:29]} Rg6 {[%emt 0:01:47]} 26. Rxg6 {[%emt 0:01:20]} fxg6 {[%emt 0:00:01]} 27. c4 {[%emt 0:00:28]} Kd8 {[%emt 0:06:35]} 28. Kc2 {[%emt 0:04:42]} Kc7 {[%emt 0:01:04]} 29. Bc1 {[%emt 0:02:37]} g4 {[%emt 0:02:46]} 30. fxg4 {[%emt 0:04:25]} Rf8 {[%emt 0:00:10]} 31. Be3 {[%emt 0:00:16]} Rf1 {[%emt 0:00:24]} 32. Kd3 {[%emt 0:01:18]} Rh1 {[%emt 0:00:47]} 33. Ke2 {[%emt 0:06:45]} Rxh2 {[%emt 0:00:20]} 34. Kf3 {[%emt 0:00:07]} Rh1 {[%emt 0:00:40]} 35. a5 {[%emt 0:03:31]} Ra1 {[%emt 0:00:30]} 36. Bb6+ {[%emt 0:00:13]} Kc6 {[%emt 0:01:22]} 37. g5 {[%emt 0:03:06]} hxg5 {[%emt 0:00:49]} 38. Bd8 {[%emt 0:01:22]} Rf1+ {[%emt 0:01:35]} 39. Kg4 {[%emt 0:00:52]} Rf4+ {[%emt 0:01:49]} 40. Kxg5 {[%emt 0:01:12]} Rxe4 {[%emt 0:00:08]} 41. Kxg6 {[%emt 0:33:31]} Rg4+ {[%emt 0:31:31]} 42. Kf5 {[%emt 0:00:17]} Rxg2 {[%emt 0:00:54]} 43. Bb6 {[%emt 0:01:29]} Ra2 {[%emt 0:00:00]} 44. Ke4 {[%emt 0:00:00]} Ra1 {[%emt 0:00:00]} 45. Kf5 {[%emt 0:00:00]} Rf1+ {[%emt 0:00:00]} 46. Ke4 {[%emt 0:00:00]} Rf4+ {[%emt 0:00:00]} 47. Kd3 {[%emt 0:00:00]} Rh4 {[%emt 0:00:00]} 48. Ke3 {[%emt 0:00:00]} Rh3+ {[%emt 0:00:00]} 49. Kf2 {[%emt 0:00:00]} Rc3 {[%emt 0:00:00]} 50. Ke1 {[%emt 0:00:00]} Rc2 {[%emt 0:00:00]} 51. Kd1 {[%emt 0:00:36]} Ra2 {[%emt 0:00:00]} 52. Kc1 {[%emt 0:00:06]} e4 {[%emt 0:00:00]} 53. Kb1 {[%emt 0:07:24]} Rh2 {[%emt 0:00:00]} 54. Ba7 {[%emt 0:01:21]} Re2 {[%emt 0:00:00]} 55. Kc1 {[%emt 0:00:52]} Ra2 {[%emt 0:00:00]} 56. Bb6 {[%emt 0:03:04]} Rg2 {[%emt 0:00:00]} 57. Ba7 {[%emt 0:00:08]} Re2 {[%emt 0:00:48]} 58. Kd1 {[%emt 0:00:52]} Rg2 {[%emt 0:02:00]} 59. Kc1 {[%emt 0:00:21]} Rg5 {[%emt 0:01:29]} 60. Bb6 {[%emt 0:01:08]} Ne5 {[%emt 0:00:50]} 61. Kd2 {[%emt 0:02:31]} Nd3 {[%emt 0:00:25]} 62. Ra4 {[%emt 0:00:27]} Nc5 {[%emt 0:03:02]} 63. Bxc5 $4 {[%emt 0:01:41][%mdl 8192]} (63. Rb4 $17 {was the crucial defense.}) 63... Kxc5 $19 {[%emt 0:00:05]} 64. Ke3 {[%emt 0:00:10]} Rg3+ $2 {[%emt 0:01:20]} (64... Bb7 $1 $19 {and Black stays clearly on top. White must now prevent ...Bc6.} 65. a6 Rg3+ 66. Kf2 Rf3+ (66... Rxb3 67. axb7 Rxb7 68. Ke3 $11) 67. Ke1 Ba8 68. Ra5+ Kd4) 65. Kxe4 $17 {[%emt 0:00:16]} Rxb3 {[%emt 0:00:03]} 66. Kf4 {[%emt 0:02:56]} Rh3 {[%emt 0:00:07]} (66... Bxc4 67. Ra1 Ba6 68. Ke4) 67. Ra1 {[%emt 0:02:35]} Rc3 {[%emt 0:01:23]} 68. Ra4 {[%emt 0:00:37]} Rc1 {[%emt 0:00:18]} 69. Ke4 {[%emt 0:00:34]} Rh1 {[%emt 0:00:09]} (69... Bxc4 70. a6 Bb5 71. Ra3) ({Much weaker is} 69... Rxc4+ 70. Rxc4+ Kxc4 71. Ke5 $11) 70. Ke5 {[%emt 0:01:10]} Rh6 {[%emt 0:00:22]} (70... Bxc4 $2 71. a6 Re1+ 72. Kf4 $19) 71. Ra1 {[%emt 0:01:05]} Bxc4 {[%emt 0:00:11]} 72. a6 Bxa6 {[%emt 0:00:03]} ({Much worse is} 72... Rxa6 73. Rxa6 Bxa6 $11) 73. Rc1+ {[%emt 0:02:42]} Bc4 {[%emt 0:00:04]} 74. Kf5 {[%emt 0:00:59]} Rh4 {[%emt 0:01:20]} 75. Ke5 {[%emt 0:00:38]} Rh2 {[%emt 0:00:10]} 76. Re1 {[%emt 0:00:49]} Rh8 {[%emt 0:00:20]} 77. Rc1 {[%emt 0:00:08]} Re8+ {[%emt 0:00:10]} 78. Kf4 {[%emt 0:00:14]} Kd4 {[%emt 0:00:06]} 79. Kf5 {[%emt 0:01:07]} Rf8+ {[%emt 0:00:28]} 80. Kg5 {[%emt 0:00:20]} Bd5 {[%emt 0:00:10]} 81. Re1 {[%emt 0:01:39]} Be4 {[%emt 0:00:12]} 82. Ra1 {[%emt 0:00:54]} Ke5 {[%emt 0:00:05]} 83. Ra5+ {[%emt 0:01:16]} Bd5 {[%emt 0:00:02]} 84. Ra7 {[%emt 0:00:49]} Rg8+ {[%emt 0:00:16]} 85. Kh6 $2 {[%emt 0:01:01][%mdl 8192] [#]} (85. Kh4 $17) 85... Kf6 $1 {[%emt 0:00:46]} 86. Kh5 {[%emt 0:00:36] [#]} Kf5 $2 {[%emt 0:01:52]} (86... Be6 $1 87. Kh4 Rg4+ 88. Kh5 Rc4 89. Ra6 Rb4 90. Rd6 Rb5+ 91. Kh4 Rb3 92. Rxe6+ Kxe6 93. Kg4 Ke5 94. Kg5 Rg3+ 95. Kh4 Rg1 96. Kh5 Kf4 97. Kh6 Kf5 98. Kh7 Kf6 99. Kh8 Kf7 100. Kh7 Rh1#) 87. Kh4 $17 {[%emt 0:00:19]} Kf4 {[%emt 0:00:05]} (87... Rg4+ 88. Kh3 Bg2+ 89. Kh2 $17) 88. Kh5 $2 {[%emt 0:00:18][%mdl 8192]} (88. Ra4+ $17 Be4 89. Ra5 Rg2 90. Ra3 Bc2 91. Rc3 Bf5 92. Rc4+ Be4 93. Rc3 Rg4+ 94. Kh3 Rg7 95. Kh2 Rg2+ 96. Kh3 Rd2 97. Rc4 Rd1 98. Rxe4+ Kxe4 99. Kg3 Rd2 100. Kg4 Rg2+ 101. Kh4 Kf4 102. Kh5 Rg4 103. Kh6 Kf5 104. Kh5 Rd4 105. Kh6 Rd7 106. Kh5 Rh7#) 88... Be4 $2 {[%emt 0:00:31]} (88... Rh8+ {mates} 89. Kg6 Be4+ 90. Kf6 Rh6+ 91. Ke7 Rh7+ 92. Kd6 Rxa7 93. Kc5 Ke5 94. Kb6 Rh7 95. Kc5 Bd5 96. Kb5 Kd4 97. Kb4 Rb7+ 98. Ka4 Kc3 99. Ka5 Bc4 100. Ka4 Ra7#) 89. Ra6 {[%emt 0:00:22]} Rg7 {[%emt 0:00:42]} 90. Rb6 {[%emt 0:00:28]} Ra7 {[%emt 0:00:32]} 91. Rd6 {[%emt 0:00:16]} Rb7 {[%emt 0:02:30]} 92. Ra6 {[%emt 0:00:06]} Bc2 {[%emt 0:00:57]} 93. Rc6 {[%emt 0:00:27]} Bf5 {[%emt 0:00:40]} 94. Ra6 {[%emt 0:00:33]} Be4 {[%emt 0:00:55]} 95. Rd6 {[%emt 0:00:31]} Kf5 {[%emt 0:00:46]} 96. Kh4 {[%emt 0:00:49]} Rg7 {[%emt 0:01:02]} 97. Ra6 {[%emt 0:00:23]} Rg1 {[%emt 0:00:16]} 98. Kh3 {[%emt 0:01:13]} Kf4 {[%emt 0:00:12]} 99. Ra2 $2 {[%emt 0:00:08][%mdl 8192]} (99. Rf6+ $17 Bf5+ 100. Kh2) 99... Rg8 {[%emt 0:00:26]} 0-1

[Event "Dutch Meesterklasse 2024-25"]
[Site "Netherlands"]
[Date "2024.10.12"]
[Round "2.7"]
[White "Aravindhan, Achyuth"]
[Black "Hamblok, Roel"]
[Result "0-1"]
[ECO "C03"]
[WhiteElo "2173"]
[BlackElo "2222"]
[Annotator "RC"]
[PlyCount "62"]
[EventDate "2024.09.21"]
[EventType "team-tourn"]
[EventCountry "NED"]
[SourceTitle "playchess.com"]
[Source "ChessBase"]
[SourceQuality "1"]
[TimeControl "40/5400+30:1800+30"]

1. e4 {[%emt 0:00:03]} e6 {[%emt 0:10:47]} 2. d4 {[%emt 0:00:04]} d5 {[%emt 0:00:05]} 3. Nd2 {[%emt 0:00:08]} Be7 {[%emt 0:00:17]} 4. c3 {[%emt 0:00:06]} c5 {[%emt 0:00:12]} 5. dxc5 {[%emt 0:00:11]} Nf6 {[%emt 0:01:38]} 6. exd5 {[%emt 0:06:18]} Qxd5 {[%emt 0:03:24]} 7. Ngf3 {[%emt 0:01:40]} Qxc5 {[%emt 0:01:00]} 8. Bd3 {[%emt 0:07:37]} O-O {[%emt 0:04:00]} 9. O-O {[%emt 0:01:00]} Rd8 {[%emt 0:07:29]} 10. Qe2 {[%emt 0:03:48]} Nbd7 {[%emt 0:09:20]} 11. Rd1 {[%emt 0:09:26]} Qc7 {[%emt 0:03:45]} 12. Nb3 {[%emt 0:11:29]} b6 {[%emt 0:05:49]} 13. Bg5 {[%emt 0:14:13]} Bb7 {[%emt 0:04:47]} 14. Bc2 {[%emt 0:00:38]} Nc5 {[%emt 0:05:15]} 15. Rxd8+ {[%emt 0:09:43]} Rxd8 {[%emt 0:02:55]} 16. Rd1 {[%emt 0:00:27]} Ba6 {[%emt 0:11:06]} 17. Qe5 {[%emt 0:10:23]} Rxd1+ {[%emt 0:07:59]} 18. Bxd1 {[%emt 0:00:46]} Qd8 {[%emt 0:00:06]} 19. Bc2 {[%emt 0:06:27]} Nd3 {[%emt 0:02:53]} 20. Bxd3 {[%emt 0:01:32]} Bxd3 {[%emt 0:01:35]} 21. Nbd4 {[%emt 0:03:25]} Qc8 {[%emt 0:03:53]} 22. h3 {[%emt 0:04:01]} Ba6 {[%emt 0:01:33]} 23. Nf5 {[%emt 0:02:18]} Bd8 {[%emt 0:04:37]} 24. Nd6 {[%emt 0:01:55]} Qd7 {[%emt 0:02:25]} 25. Ne4 {[%emt 0:04:42]} Bc7 {[%emt 0:03:30]} 26. Nxf6+ {[%emt 0:00:31]} gxf6 {[%emt 0:00:07]} 27. Qe3 {[%emt 0:00:34]} Qd1+ {[%emt 0:00:54]} 28. Ne1 {[%emt 0:00:06]} fxg5 {[%emt 0:01:03]} 29. Qxg5+ {[%emt 0:00:03]} Kf8 {[%emt 0:00:13]} 30. Qh6+ {[%emt 0:00:07]} Ke8 {[%emt 0:00:15]} 31. Qe3 {[%emt 0:00:04]} Be2 {[%emt 0:00:13]} 0-1

[Event "Dutch Meesterklasse 2024-25"]
[Site "Netherlands"]
[Date "2024.10.12"]
[Round "2.8"]
[White "Van Foreest, Machteld"]
[Black "Lammens, Tim"]
[Result "1-0"]
[ECO "B13"]
[WhiteElo "2303"]
[BlackElo "2240"]
[Annotator "RC"]
[PlyCount "51"]
[EventDate "2024.09.21"]
[EventType "team-tourn"]
[EventCountry "NED"]
[SourceTitle "playchess.com"]
[Source "ChessBase"]
[SourceQuality "1"]
[TimeControl "40/5400+30:1800+30"]

1. e4 {[%emt 0:05:08]} c6 {[%emt 0:00:04]} 2. d4 {[%emt 0:00:52]} d5 {[%emt 0:00:06]} 3. exd5 {[%emt 0:00:12]} cxd5 {[%emt 0:00:06]} 4. c4 {[%emt 0:00:03]} Nf6 {[%emt 0:00:05]} 5. Nf3 {[%emt 0:00:09]} Nc6 {[%emt 0:00:41]} 6. Nc3 {[%emt 0:02:37]} a6 {[%emt 0:00:19]} 7. h3 {[%emt 0:25:28]} dxc4 {[%emt 0:06:50]} 8. Bxc4 {[%emt 0:07:37]} e6 {[%emt 0:01:29]} 9. O-O {[%emt 0:04:35]} Be7 {[%emt 0:00:37]} 10. a3 {[%emt 0:02:29]} O-O {[%emt 0:02:03]} 11. d5 {[%emt 0:15:49]} exd5 {[%emt 0:08:09]} 12. Nxd5 {[%emt 0:01:00]} Nxd5 {[%emt 0:00:19]} 13. Bxd5 {[%emt 0:00:19]} Bf6 {[%emt 0:04:43]} 14. Qb3 {[%emt 0:04:51]} Na5 {[%emt 0:19:48]} 15. Qa2 {[%emt 0:00:20]} Qb6 {[%emt 0:04:30]} 16. Ng5 {[%emt 0:10:00]} Bxg5 {[%emt 0:08:12]} 17. Bxg5 {[%emt 0:00:02]} Qg6 {[%emt 0:00:38]} 18. Bd2 {[%emt 0:03:43]} Nc6 {[%emt 0:00:17]} 19. Rfe1 {[%emt 0:01:08]} Bxh3 {[%emt 0:21:38]} 20. Re3 {[%emt 0:00:05]} Bg4 {[%emt 0:02:20]} 21. Rae1 {[%emt 0:02:18]} h5 {[%emt 0:02:49]} 22. Bc3 {[%emt 0:03:27]} Rad8 {[%emt 0:02:08]} 23. Qc4 {[%emt 0:01:30]} Kh8 {[%emt 0:09:41]} 24. Rg3 {[%emt 0:00:58]} f5 {[%emt 0:00:51]} 25. Re6 {[%emt 0:01:29]} Qg5 {[%emt 0:00:55]} 26. f4 {[%emt 0:00:18]} 1-0

[Event "Dutch Meesterklasse 2024-25"]
[Site "Netherlands"]
[Date "2024.10.12"]
[Round "2.8"]
[White "Gallasch, Jonas"]
[Black "Los, Sander"]
[Result "1-0"]
[ECO "E68"]
[WhiteElo "2298"]
[BlackElo "2283"]
[Annotator "RC"]
[PlyCount "70"]
[EventDate "2024.09.21"]
[EventType "team-tourn"]
[EventCountry "NED"]
[SourceTitle "playchess.com"]
[Source "ChessBase"]
[SourceQuality "1"]
[TimeControl "40/5400+30:1800+30"]

1. d4 {[%emt 0:00:03]} g6 {[%emt 0:00:09]} 2. g3 {[%emt 0:00:34]} Bg7 {[%emt 0:00:07]} 3. Bg2 {[%emt 0:00:09]} d6 {[%emt 0:00:13]} 4. Nf3 {[%emt 0:00:25]} Nf6 {[%emt 0:00:15]} 5. O-O {[%emt 0:00:10]} O-O {[%emt 0:00:06]} 6. c4 {[%emt 0:00:03]} Nbd7 {[%emt 0:00:09]} 7. Qc2 {[%emt 0:00:06]} e5 {[%emt 0:06:57]} 8. Rd1 {[%emt 0:01:35]} exd4 {[%emt 0:04:37]} 9. Nxd4 {[%emt 0:02:58]} Re8 {[%emt 0:01:05]} 10. Nc3 {[%emt 0:00:46]} c6 {[%emt 0:01:58]} 11. e4 {[%emt 0:01:34]} Qe7 {[%emt 0:05:40]} 12. b3 {[%emt 0:10:08]} Nc5 {[%emt 0:09:46]} 13. f3 {[%emt 0:04:23]} Nfd7 {[%emt 0:10:14]} 14. Bb2 {[%emt 0:28:08]} a5 {[%emt 0:04:32]} 15. Rab1 {[%emt 0:09:26]} h5 {[%emt 0:02:19]} 16. a3 {[%emt 0:07:29]} h4 {[%emt 0:09:55]} 17. b4 {[%emt 0:01:34]} axb4 {[%emt 0:01:15]} 18. axb4 {[%emt 0:00:01]} Ne6 {[%emt 0:02:05]} 19. Nce2 {[%emt 0:13:19]} hxg3 {[%emt 0:04:28]} 20. hxg3 {[%emt 0:00:45]} Ne5 {[%emt 0:17:51]} 21. f4 {[%emt 0:01:47]} Ng4 {[%emt 0:01:01]} 22. Nxe6 {[%emt 0:00:39]} Bxe6 {[%emt 0:00:48]} 23. Bxg7 {[%emt 0:00:27]} Kxg7 {[%emt 0:00:04]} 24. Rd2 {[%emt 0:04:18]} Qf6 {[%emt 0:06:15]} 25. Qd3 {[%emt 0:02:54]} Kg8 {[%emt 0:03:36]} 26. Nd4 {[%emt 0:00:56]} Rad8 {[%emt 0:02:00]} 27. Nxe6 {[%emt 0:03:50]} Qxe6 {[%emt 0:00:23]} 28. Bh3 {[%emt 0:00:25]} f5 {[%emt 0:02:14]} 29. Bxg4 {[%emt 0:01:05]} fxg4 {[%emt 0:00:06]} 30. Re1 {[%emt 0:00:01]} Kf7 {[%emt 0:02:12]} 31. Ree2 {[%emt 0:01:06]} Rh8 {[%emt 0:00:35]} 32. Rh2 {[%emt 0:00:42]} Qf6 {[%emt 0:00:38]} 33. Rxh8 {[%emt 0:01:48]} Qxh8 {[%emt 0:00:43]} 34. e5 {[%emt 0:00:57]} Ra8 {[%emt 0:01:05]} 35. Qxd6 {[%emt 0:01:08]} Qh3 {[%emt 0:00:28]} 1-0